bitfinex/quotes_ETHUSD_20240722
["timestamp","ask_amount","ask_price","bid_price","bid_amount"]
[1721611789452,3.41481042,3541.7,3540.8,2.82421]
[1721611789625,3.41481042,3541.7,3541.0,2.824]
[1721611789943,3.41481042,3541.7,3541.1,2.82397]
[1721611790506,2.82359,3541.6,3540.9,2.82411]
[1721611791517,2.82359,3541.6,3541.0,0.03763317]
[1721611791518,2.82371,3541.5,3541.0,0.03763317]
[1721611791722,2.4612,3541.2,3540.5,2.82441]
[1721611791929,5.2851,3541.2,3540.5,2.82441]
[1721611792126,5.2851,3541.2,3540.6,0.03763317]
[1721611793151,2.4612,3541.2,3540.6,2.86199317]
[1721611793848,2.4612,3541.2,3540.6,0.03763317]
[1721611794047,2.82408,3541.0,3540.6,0.03763317]
[1721611794255,2.82408,3541.0,3540.3,2.82458]
[1721611794551,2.82408,3541.0,3540.1,7.3]
[1721611794552,2.82409,3541.0,3540.1,7.3]
[1721611794751,2.8243,3540.7,3540.4,0.03764322]
[1721611795044,3.377281,3540.9,3540.1,7.3]
[1721611795217,3.377281,3540.9,3540.5,0.03764322]
[1721611795418,3.377281,3540.9,3540.1,7.3]
[1721611795419,0.553141,3540.9,3540.1,7.3]
[1721611795669,0.553141,3540.9,3540.6,0.03651721]
[1721611795817,2.82422,3540.8,3540.1,7.3]
[1721611796016,2.82422,3540.8,3540.7,0.03651721]
[1721611796246,2.82438,3540.6,3540.1,7.3]
[1721611799562,2.82438,3540.6,3539.9,2.8249]
[1721611801030,2.82447,3540.5,3539.8,2.82499]
[1721611801556,0.270732,3541.0,3539.5,3.41485387]
[1721611801557,2.3368,3540.3,3539.5,3.41485387]
[1721611801763,2.3368,3540.3,3539.6,2.82517]
[1721611802667,2.82439,3540.6,3539.9,2.82486]
[1721611802867,2.4223,3540.7,3540.0,2.82483]
[1721611803087,5.2466,3540.7,3540.0,2.82483]
[1721611803225,2.4223,3540.7,3540.0,2.82485]
[1721611803559,2.82427,3540.8,3540.1,2.82477]
[1721611803768,2.82408,3541.0,3540.3,2.82461]
[1721611803965,2.82408,3541.0,3539.7,2.92481387]
[1721611803966,0.793456,3541.0,3540.1,0.05648994]
[1721611804170,2.2865,3541.1,3540.5,2.82445]
[1721611804685,2.3791,3541.5,3540.7,2.82423]
[1721611804828,2.82359,3541.6,3540.7,2.82423]
[1721611805163,2.82348,3541.8,3541.0,2.82405]
[1721611805476,2.82348,3541.8,3540.5,0.05648154]
[1721611805477,2.3791,3541.9,3541.2,2.82389]
[1721611805659,2.92886371,3541.9,3541.3,2.8238]
[1721611805820,2.82318,3542.1,3541.0,2.82406]
[1721611805821,2.82318,3542.1,3541.4,2.82373]
[1721611806024,5.09862,3542.3,3541.3,2.82382]
[1721611806280,2.2756,3542.3,3541.7,2.82348]
[1721611807061,5.22134,3542.7,3541.6,2.82358]
[1721611807238,2.3986,3542.7,3541.8,2.82337]
[1721611807464,0.522129,3542.6,3541.8,2.82337]
[1721611807830,0.522129,3542.6,3541.9,2.82333]
[1721611807989,0.522129,3542.6,3541.7,2.82346]
[1721611807990,2.82279,3542.6,3541.7,2.82346]
[1721611808594,2.82294,3542.4,3541.4,2.82373]
[1721611808743,1.050848,3542.7,3541.2,10.12389]
[1721611808935,2.8231,3542.2,3541.3,0.55]
[1721611809187,1.050848,3542.7,3541.5,2.82365]
[1721611809392,2.82303,3542.3,3541.5,2.82365]
[1721611809886,2.82311,3542.2,3541.2,10.12385]
[1721611810087,2.82345,3541.8,3541.2,7.3]
[1721611810395,3.0,3542.6,3540.8,2.82417]
[1721611810539,2.82364,3541.6,3540.8,2.82417]
[1721611810742,2.82367,3541.5,3540.8,2.82417]
[1721611811079,2.82337,3541.9,3541.2,2.82384]
[1721611811287,2.82337,3541.9,3540.7,2.4213]
[1721611811288,2.3215,3542.2,3540.8,0.05647668]
[1721611811440,0.582276,3542.5,3541.6,2.82352]
[1721611811441,3.405156,3542.5,3541.6,2.82352]
[1721611811639,1.6195026,3542.4,3541.5,2.82365]
[1721611812263,4.4424826,3542.4,3541.6,2.82354]
[1721611812681,1.6195026,3542.4,3541.6,2.82357]
[1721611812899,2.82279,3542.6,3541.8,2.82341]
[1721611813099,2.82288,3542.5,3541.8,2.82341]
[1721611813257,2.82288,3542.5,3541.6,2.82357]
[1721611813854,2.82288,3542.5,3541.4,5.25673]
[1721611813855,2.82296,3542.4,3541.7,2.82346]
[1721611814485,2.82303,3542.3,3541.4,5.25673]
[1721611814804,2.82303,3542.3,3541.4,5.782403]
[1721611815092,2.4871,3542.7,3541.5,2.82362]
[1721611815093,2.82286,3542.5,3541.5,2.82362]
[1721611815304,2.82316,3542.2,3541.3,2.82382]
[1721611815471,2.82316,3542.2,3541.4,2.82372]
[1721611815995,5.19949,3542.5,3541.0,12.49133]
[1721611816170,2.82303,3542.3,3541.0,9.6673]
[1721611816370,0.519949,3542.4,3541.0,7.3]
[1721611816371,2.3766,3541.8,3541.0,7.3]
[1721611816578,2.82361,3541.6,3541.0,7.3]
[1721611816814,2.82361,3541.6,3540.4,7.3]
[1721611817295,2.3766,3541.8,3540.4,7.3]
[1721611817467,2.82396,3541.2,3540.4,10.12452]
[1721611817672,2.82396,3541.2,3540.5,0.03627297]
[1721611817947,2.82396,3541.2,3540.5,2.86066297]
[1721611818229,2.82383,3541.3,3540.6,2.82437]
[1721611818413,2.82383,3541.3,3540.7,0.03632147]
[1721611818797,2.82367,3541.5,3540.7,2.86058147]
[1721611819006,3.6780542,3541.5,3540.7,2.86058147]
[1721611819332,3.6780542,3541.5,3540.8,2.82421]
[1721611819536,0.8543842,3541.5,3540.9,2.82411]
[1721611819830,0.8543842,3541.5,3541.0,0.03632147]
[1721611820030,0.8543842,3541.5,3541.0,2.82404]
[1721611820336,0.8543842,3541.5,3541.1,0.03632147]
[1721611820539,2.3766,3541.8,3541.1,0.03632147]
[1721611820831,2.82341,3541.9,3541.0,5.18495]
[1721611821024,2.82341,3541.9,3541.1,0.03632147]
[1721611821188,2.82345,3541.8,3541.1,0.03632147]
[1721611821388,2.82352,3541.7,3541.1,0.03632147]
[1721611821838,0.564686,3541.7,3541.1,0.03632147]
[1721611822042,2.2882,3542.2,3541.1,0.03632147]
[1721611822196,2.8235,3541.7,3541.1,0.03632147]
[1721611822397,2.8235,3541.7,3541.2,0.03632147]
[1721611822614,2.82379,3541.4,3540.6,2.82435]
[1721611822820,2.82379,3541.4,3540.7,0.03632147]
[1721611823028,3.617348,3541.4,3540.7,2.86059147]
[1721611823242,0.793558,3541.4,3540.7,0.03632147]
[1721611823542,0.793558,3541.4,3540.8,2.82421]
[1721611823845,2.2882,3541.9,3541.1,2.82397]
[1721611824049,2.2882,3541.9,3540.8,0.03632147]
[1721611824050,2.82338,3541.9,3541.2,5.18479]
[1721611824197,2.82322,3542.1,3541.2,5.18479]
[1721611824399,2.82328,3542.0,3541.3,0.03632147]
[1721611824621,3.916741,3542.0,3541.3,0.03632147]
[1721611825008,2.82348,3541.8,3541.3,0.03632147]
[1721611825236,2.82356,3541.7,3541.3,0.03632147]
[1721611825446,2.8236,3541.6,3540.9,2.8241]
[1721611825632,2.8236,3541.6,3541.4,0.03632147]
[1721611825937,3.617122,3541.6,3540.9,2.8241]
[1721611826122,3.617122,3541.6,3541.5,0.03632147]
[1721611826322,0.793522,3541.6,3541.0,2.82405]
[1721611826533,6.740081,3542.0,3541.3,2.82382]
[1721611826702,2.82335,3541.9,3541.1,2.46862147]
[1721611826904,2.82343,3541.8,3541.1,2.4323]
[1721611827107,3.4974451,3541.8,3541.2,0.03632147]
[1721611828597,0.6740151,3541.8,3541.2,2.86022147]
[1721611828802,2.82336,3541.9,3541.2,2.86022147]
[1721611831017,2.82336,3541.9,3541.3,2.82381]
[1721611831214,1.093461,3542.0,3541.4,2.82372]
[1721611831416,2.82327,3542.0,3541.5,0.03632147]
[1721611832753,2.82327,3542.0,3541.2,2.82389]
[1721611832924,2.8231,3542.2,3541.6,0.03628467]
[1721611833120,2.82308,3542.3,3541.6,2.82358]
[1721611833319,2.82308,3542.3,3541.7,0.03628467]
[1721611833553,0.519949,3542.4,3541.7,0.03628467]
[1721611833771,2.82289,3542.5,3541.8,5.23741]
[1721611834061,2.82289,3542.5,3541.9,0.03628467]
[1721611834377,2.82272,3542.7,3542.0,2.82326]
[1721611834517,2.82272,3542.7,3541.9,0.03628467]
[1721611834518,2.82272,3542.7,3542.1,2.82317]
[1721611834726,2.82255,3542.9,3542.1,2.82317]
[1721611834960,3.65738379,3542.9,3542.1,2.82317]
[1721611835119,2.82246,3543.0,3542.3,2.82301]
[1721611835619,3.1173979,3543.2,3542.4,0.03628467]
[1721611835839,3.1174079,3543.2,3542.5,2.3068]
[1721611836051,2.4083,3543.4,3542.6,0.03628467]
[1721611836361,2.82238,3543.1,3542.6,0.03628467]
[1721611836515,2.82238,3543.1,3542.5,2.3068]
[1721611836728,2.82238,3543.1,3542.7,0.03628467]
[1721611836930,2.82238,3543.1,3542.5,2.3068]
[1721611837133,2.82238,3543.1,3542.8,0.03628467]
[1721611837335,2.82238,3543.1,3542.5,2.3068]
[1721611837572,2.82238,3543.1,3542.9,0.03628467]
[1721611837738,3.62767,3543.1,3542.5,2.3068]
[1721611837936,3.62767,3543.1,3543.0,0.03628467]
[1721611838434,3.62767,3543.1,3542.5,2.3068]
[1721611838633,2.4083,3543.4,3542.6,2.85905467]
[1721611839099,2.82207,3543.5,3542.6,2.85905467]
[1721611839448,2.82231,3543.2,3542.6,0.03628467]
[1721611839784,2.82236,3543.2,3542.6,0.03628467]
[1721611840588,2.8227,3542.7,3542.6,0.03628467]
[1721611840748,5.6454,3542.7,3542.6,0.03628467]
[1721611841070,2.82325,3542.1,3541.8,7.3]
[1721611841280,2.82322,3542.1,3541.5,0.58961387]
[1721611841456,2.82325,3542.1,3541.9,0.03606562]
[1721611841646,0.564627,3542.0,3541.4,0.58961387]
[1721611841855,2.82302,3542.3,3541.4,0.58961387]
[1721611842030,2.82287,3542.5,3541.5,0.03596362]
[1721611842231,2.82287,3542.5,3541.8,5.12561]
[1721611842470,2.82274,3542.7,3541.9,2.85935547]
[1721611843050,2.82279,3542.6,3541.9,2.85935547]
[1721611844046,3.3110871,3542.6,3541.9,0.03602547]
[1721611844265,2.82302,3542.3,3541.9,0.03602547]
[1721611844573,2.82312,3542.2,3541.9,0.03602547]
[1721611844738,0.4882971,3542.6,3541.9,0.03602547]
[1721611844739,2.82295,3542.4,3541.9,0.03602547]
[1721611844939,2.82321,3542.1,3541.4,5.23923]
[1721611845150,2.82321,3542.1,3542.0,0.03605222]
[1721611845664,2.82321,3542.1,3541.4,5.23923]
[1721611845862,2.82321,3542.1,3542.0,0.03605222]
[1721611846061,2.82295,3542.4,3542.0,0.03605222]
[1721611846062,2.82305,3542.3,3542.0,0.03605222]
[1721611846262,0.5646,3542.2,3541.4,5.23923]
[1721611846574,3.3110871,3542.6,3541.8,2.82339]
[1721611846976,2.82301,3542.4,3541.9,0.03606895]
[1721611847175,2.82286,3542.5,3541.9,0.03606895]
[1721611847379,2.82286,3542.5,3541.5,2.82364]
[1721611847546,2.82311,3542.2,3542.0,0.0360656]
[1721611847747,2.82294,3542.4,3541.4,2.4155]
[1721611847945,2.82287,3542.5,3541.8,2.82341]
[1721611848683,2.82287,3542.5,3541.9,0.0360656]
[1721611849888,2.82296,3542.4,3541.9,0.0360656]
[1721611850388,2.82304,3542.3,3541.9,0.0360656]
[1721611850564,2.82313,3542.2,3541.5,2.82365]
[1721611850758,2.82313,3542.2,3542.0,0.0360656]
[1721611850965,0.564607,3542.1,3541.5,2.82365]
[1721611851275,2.82294,3542.4,3541.6,2.82357]
[1721611851480,2.82306,3542.3,3541.6,2.85959882]
[1721611852001,2.82306,3542.3,3541.7,2.82349]
[1721611852155,2.8229,3542.5,3541.8,2.82341]
[1721611852586,2.8229,3542.5,3541.9,0.03483556]
[1721611852787,2.82294,3542.4,3541.9,0.03483556]
[1721611853173,2.82294,3542.4,3541.6,2.82354]
[1721611853377,2.82294,3542.4,3542.0,0.03487227]
[1721611853574,2.82294,3542.4,3541.7,2.82348]
[1721611853780,5.64594,3542.4,3542.1,0.03487227]
[1721611853980,2.82302,3542.3,3541.4,5.23922]
[1721611854176,5.64604,3542.3,3542.2,0.03487227]
[1721611854383,2.82326,3542.0,3541.4,2.4155]
[1721611854774,2.82326,3542.0,3541.5,0.03486059]
[1721611855674,2.8231,3542.2,3541.5,0.03486059]
[1721611855887,2.8231,3542.2,3541.5,2.85844059]
[1721611856058,2.82303,3542.3,3541.6,2.82358]
[1721611856406,2.82301,3542.4,3541.7,2.82347]
[1721611856565,2.82301,3542.4,3541.7,2.85833059]
[1721611856765,2.82279,3542.6,3541.7,2.85833059]
[1721611856987,2.8231,3542.2,3541.7,0.03486059]
[1721611857362,2.8231,3542.2,3541.5,2.82366]
[1721611857564,2.8231,3542.2,3541.8,0.03486059]
[1721611857876,2.8231,3542.2,3541.9,0.03486059]
[1721611858187,2.8231,3542.2,3541.5,2.82366]
[1721611858367,2.8231,3542.2,3542.0,0.03486059]
[1721611858556,3.387711,3542.2,3541.5,2.82366]
[1721611858757,2.8231,3542.2,3542.1,0.03486059]
[1721611858979,2.8231,3542.2,3541.5,10.12364]
[1721611859392,2.8231,3542.2,3541.6,0.03486059]
[1721611861017,2.82319,3542.1,3541.6,0.03486059]
[1721611861182,2.82342,3541.9,3541.6,0.03486059]
[1721611861714,2.82319,3542.1,3541.6,0.03486059]
[1721611863062,2.82306,3542.3,3541.6,2.85838059]
[1721611863215,2.82294,3542.4,3541.7,2.82347]
[1721611863424,0.26531083,3542.8,3541.9,2.3723]
[1721611863425,2.82292,3542.5,3541.9,2.3723]
[1721611863579,2.82296,3542.4,3541.9,2.3723]
[1721611863780,2.82296,3542.4,3542.0,0.03486059]
[1721611864314,2.82303,3542.3,3542.0,0.03486059]
[1721611864880,2.82287,3542.5,3542.0,0.03486059]
[1721611865077,3.41395908,3542.5,3542.0,0.03486059]
[1721611866422,0.26531083,3542.8,3542.0,0.03486059]
[1721611866732,0.29510833,3543.0,3542.3,2.82302]
[1721611866733,3.11758833,3543.0,3542.3,2.82302]
[1721611866960,2.82256,3542.9,3542.1,2.82312]
[1721611867410,2.82239,3543.1,3542.3,2.82301]
[1721611867610,2.82239,3543.1,3542.4,2.2651]
[1721611868060,2.82239,3543.1,3542.5,0.03489229]
[1721611868228,2.82246,3543.0,3542.5,0.03489229]
[1721611868612,2.82234,3543.2,3542.5,2.85774229]
[1721611868813,2.82238,3543.1,3542.5,2.85774229]
[1721611869124,2.82225,3543.3,3542.6,2.82271]
[1721611869332,2.8221,3543.5,3542.7,2.82269]
[1721611869519,0.93000442,3543.5,3542.7,2.82269]
[1721611869726,2.82199,3543.6,3542.8,0.03489229]
[1721611870608,2.82173,3544.0,3542.9,2.2989]
[1721611870807,2.82173,3544.0,3543.3,2.82222]
[1721611871066,2.82173,3544.0,3542.5,2.82281]
[1721611871067,2.82144,3544.3,3543.4,5.12101]
[1721611871357,2.82159,3544.1,3543.4,5.15590229]
[1721611871514,2.82144,3544.3,3543.5,2.82206]
[1721611871904,2.82153,3544.2,3543.5,2.82206]
[1721611872108,2.82159,3544.1,3543.6,0.03489229]
[1721611872554,2.82135,3544.4,3543.6,0.03489229]
[1721611872861,2.4063,3544.7,3543.6,0.03489229]
[1721611872862,0.282135,3544.3,3543.7,0.03466212]
[1721611873207,3.103565,3544.3,3543.7,0.03466212]
[1721611874550,2.82151,3544.2,3543.7,0.03466212]
[1721611875315,2.82151,3544.2,3543.4,5.121]
[1721611875510,2.82151,3544.2,3543.8,0.03466212]
[1721611875730,3.4140015,3544.2,3543.4,5.121]
[1721611875929,3.4140015,3544.2,3543.9,0.03466212]
[1721611876251,3.4140015,3544.2,3544.0,0.03466212]
[1721611876435,2.82159,3544.1,3544.0,0.03466212]
[1721611876636,2.82159,3544.1,3542.9,5.09234]
[1721611876637,5.64318,3544.1,3542.9,5.09234]
[1721611876811,2.82207,3543.5,3543.0,0.03438859]
[1721611877011,2.82208,3543.5,3543.0,0.03438859]
[1721611877258,2.82237,3543.2,3543.0,0.03438859]
[1721611877555,2.82237,3543.2,3542.5,2.2698]
[1721611878095,2.82241,3543.1,3542.6,0.03322718]
[1721611878389,0.564463,3543.1,3542.6,0.03322718]
[1721611878511,2.8227,3542.7,3542.6,0.03322718]
[1721611878723,2.82257,3542.9,3542.6,0.03322718]
[1721611878914,2.4009,3543.3,3542.6,0.03322718]
[1721611879148,2.4009,3543.3,3542.3,7.3]
[1721611879149,2.82268,3542.8,3542.3,7.3]
[1721611879351,2.82268,3542.8,3542.7,0.03218297]
[1721611879661,2.82294,3542.4,3542.3,7.3]
[1721611879811,2.82294,3542.4,3542.0,2.3972]
[1721611880262,2.82281,3542.6,3542.0,2.3972]
[1721611880425,2.82299,3542.4,3541.6,5.17331]
[1721611880824,2.82299,3542.4,3541.7,0.03218297]
[1721611881034,3.387578,3542.4,3541.7,0.03218297]
[1721611882567,2.82311,3542.2,3541.7,0.03218297]
[1721611882757,3.387578,3542.4,3541.7,0.03218297]
[1721611883576,0.564588,3542.4,3541.7,0.03218297]
[1721611883757,2.82303,3542.3,3541.7,0.03218297]
[1721611884156,2.82286,3542.5,3541.7,0.03218297]
[1721611884359,2.82255,3542.9,3541.9,2.82327]
[1721611884566,2.82284,3542.6,3541.9,2.82327]
[1721611884881,2.82284,3542.6,3542.0,0.03233976]
[1721611885090,3.105124,3542.6,3542.0,0.03233976]
[1721611886375,0.282284,3542.6,3542.0,0.03233976]
[1721611886559,3.0,3543.2,3542.0,0.03233976]
[1721611886560,2.82259,3542.9,3542.0,0.03233976]
[1721611886771,3.0,3543.2,3541.6,2.3498]
[1721611886972,2.822,3543.6,3542.1,0.03233976]
[1721611886973,5.6462,3542.2,3542.1,0.03233976]
[1721611887143,2.82343,3541.8,3541.1,5.17756]
[1721611887343,2.82343,3541.8,3541.2,0.55]
[1721611887576,2.82343,3541.8,3541.2,0.58255826]
[1721611887789,2.82358,3541.7,3541.2,0.03255826]
[1721611888804,2.82367,3541.5,3541.2,0.03255826]
[1721611889686,2.82358,3541.7,3541.2,0.03255826]
[1721611890652,2.82368,3541.5,3541.2,0.03255826]
[1721611894885,2.82358,3541.7,3541.2,0.03255826]
[1721611895068,3.105783,3541.8,3541.2,0.03255826]
[1721611895269,2.82359,3541.6,3541.2,0.03255826]
[1721611896302,2.82367,3541.5,3541.2,0.03255826]
[1721611897504,2.82368,3541.5,3541.2,0.03255826]
[1721611898383,2.8235,3541.7,3541.2,0.03255826]
[1721611898613,2.82361,3541.6,3541.2,0.03255826]
[1721611899171,0.564685,3541.7,3541.2,0.03255826]
[1721611899506,2.82351,3541.7,3541.2,0.03255826]
[1721611899820,2.82359,3541.6,3541.2,0.03255826]
[1721611901903,5.64764,3541.3,3541.2,0.03255826]
[1721611902176,5.64764,3541.3,3540.7,2.2708]
[1721611902177,2.82404,3541.1,3540.7,2.2708]
[1721611902378,2.82382,3541.3,3540.7,2.2708]
[1721611902985,2.82374,3541.4,3540.7,2.2708]
[1721611903206,2.82398,3541.1,3540.7,2.2708]
[1721611903982,3.4079842,3541.3,3540.7,2.2708]
[1721611904180,3.4079842,3541.3,3538.6,2.0659206]
[1721611904181,5.65082,3539.3,3538.6,2.0659206]
[1721611904384,8.47767,3538.7,3538.6,0.14262029]
[1721611904700,2.82717,3537.1,3537.0,0.48873841]
[1721611904927,1.93908018,3538.7,3537.0,0.48873841]
[1721611904928,1.16780583,3538.7,3537.0,0.48873841]
[1721611905231,2.04366021,3539.5,3537.1,3.53011044]
[1721611905232,3.0,3539.4,3537.1,3.53011044]
[1721611905380,2.82591,3538.7,3537.1,1.68963284]
[1721611905576,2.82591,3538.7,3537.5,2.8268]
[1721611905816,2.82514,3539.7,3536.7,2.4239]
[1721611905817,2.82607,3538.5,3536.7,2.4239]
[1721611906052,2.82591,3538.7,3537.5,2.82684]
[1721611906265,2.82598,3538.6,3537.5,2.82684]
[1721611906414,3.108658,3538.5,3537.0,3.317]
[1721611907040,3.108658,3538.5,3537.4,2.82691]
[1721611907246,3.108658,3538.5,3537.5,1.40202756]
[1721611907457,2.82616,3538.4,3537.4,2.82691]
[1721611907942,2.82616,3538.4,3537.5,2.82683]
[1721611908142,0.3551995,3538.3,3537.5,2.82683]
[1721611908353,0.3551995,3538.3,3536.7,2.4239]
[1721611908354,3.1814495,3538.3,3536.9,2.82732]
[1721611908641,3.1814495,3538.3,3537.1,2.82712]
[1721611908642,0.3551995,3538.3,3537.1,2.82712]
[1721611908819,0.3551995,3538.3,3537.4,2.82687]
[1721611909426,3.1814195,3538.3,3537.4,2.82687]
[1721611909632,3.17270175,3538.2,3537.2,2.82708]
[1721611910141,2.82639,3538.1,3537.2,2.82708]
[1721611911223,2.82645,3538.0,3537.1,2.82715]
[1721611912249,2.82645,3538.0,3537.2,2.82706]
[1721611914052,2.82631,3538.2,3537.3,2.827]
[1721611914785,2.82622,3538.3,3537.3,2.827]
[1721611914960,0.3108818,3538.2,3537.1,2.82716]
[1721611915564,2.82646,3538.0,3537.2,2.82708]
[1721611915753,2.82646,3538.0,3537.0,2.82722]
[1721611915754,2.82646,3538.0,3537.3,2.827]
[1721611916169,0.282598,3538.5,3537.4,0.05653285]
[1721611916395,2.82581,3538.9,3537.4,0.05653285]
[1721611916564,2.82567,3539.0,3538.0,2.82644]
[1721611916891,2.82504,3539.8,3538.3,2.82619]
[1721611916892,2.82559,3539.1,3538.3,2.82619]
[1721611917485,2.82567,3539.0,3538.0,2.82644]
[1721611918230,2.82541,3539.3,3538.3,2.82619]
[1721611918495,0.565065,3539.3,3538.6,2.82596]
[1721611918805,2.82524,3539.6,3538.6,2.82596]
[1721611919011,2.82478,3540.1,3538.7,0.08121262]
[1721611919302,2.82433,3540.7,3538.7,0.02469741]
[1721611919478,2.82542,3539.3,3538.7,0.02469741]
[1721611919652,2.82542,3539.3,3538.1,3.55]
[1721611919653,0.56506,3539.3,3538.1,0.55]
[1721611919957,2.82551,3539.2,3538.3,2.82617]
[1721611920188,2.82551,3539.2,3538.0,7.3]
[1721611920189,2.82551,3539.2,3538.5,2.82605]
[1721611920360,2.82536,3539.4,3538.6,2.82596]
[1721611920560,3.0,3539.3,3538.6,2.85112841]
[1721611920867,2.82503,3539.8,3538.6,0.02516841]
[1721611921198,3.40598929,3542.1,3538.0,7.3]
[1721611921199,3.282503,3539.7,3538.1,3.0]
[1721611921407,2.82551,3539.2,3538.3,2.82618]
[1721611921695,2.82534,3539.4,3538.2,3.37625]
[1721611921696,2.82534,3539.4,3538.5,2.82602]
[1721611921861,0.282503,3539.7,3538.6,2.85113841]
[1721611921862,2.82525,3539.5,3538.6,2.85113841]
[1721611922299,2.82536,3539.4,3538.6,2.85113841]
[1721611922595,0.282536,3539.3,3538.6,2.85113841]
[1721611923116,0.282536,3539.3,3538.6,0.02516841]
[1721611923320,2.8255,3539.2,3538.4,2.82613]
[1721611923480,0.282536,3539.3,3538.2,3.37628]
[1721611923481,0.282536,3539.3,3538.5,0.02516841]
[1721611923684,2.82573,3539.0,3538.2,2.82628]
[1721611923999,3.0,3540.4,3538.0,10.12645]
[1721611924000,2.82537,3539.4,3538.5,2.82605]
[1721611924303,2.82537,3539.4,3538.6,2.82596]
[1721611924531,2.82537,3539.4,3538.7,0.02516841]
[1721611924931,2.82542,3539.3,3538.7,0.02516841]
[1721611925084,0.282542,3539.2,3538.7,0.02516841]
[1721611925417,0.282542,3539.2,3538.1,2.82637]
[1721611925608,2.82553,3539.2,3538.8,0.02516841]
[1721611925805,2.82553,3539.2,3538.4,2.82613]
[1721611926004,2.82553,3539.2,3538.9,0.02516841]
[1721611926179,2.82553,3539.2,3538.4,2.82613]
[1721611926180,2.82542,3539.3,3538.2,2.82625]
[1721611926487,2.82557,3539.1,3538.2,2.82625]
[1721611926695,3.390669,3539.1,3538.3,2.85135841]
[1721611927076,3.390669,3539.1,3538.4,2.82611]
[1721611927580,3.390669,3539.1,3538.5,0.02516841]
[1721611927900,0.565099,3539.1,3538.5,0.02516841]
[1721611928107,2.82541,3539.3,3538.5,2.85115841]
[1721611929145,2.82545,3539.3,3538.5,2.85115841]
[1721611929346,2.82552,3539.2,3538.5,2.85115841]
[1721611929506,2.82564,3539.1,3538.5,0.02516841]
[1721611929702,2.82574,3538.9,3538.1,2.82634]
[1721611929903,2.82574,3538.9,3538.2,0.02516841]
[1721611930446,2.82607,3538.5,3538.2,0.02516841]
[1721611930875,2.82584,3538.8,3538.0,2.82644]
[1721611931171,2.82558,3539.1,3537.6,7.3]
[1721611931310,2.82553,3539.2,3538.5,2.82604]
[1721611931668,2.82553,3539.2,3537.7,6.37662]
[1721611931669,2.82542,3539.3,3538.6,2.82597]
[1721611931952,0.282542,3539.2,3538.7,2.82587]
[1721611932112,0.282542,3539.2,3538.6,2.85112508]
[1721611932515,3.108052,3539.2,3538.6,0.02517508]
[1721611933014,0.282542,3539.2,3538.9,2.82567]
[1721611933218,2.8251,3539.7,3538.9,2.82567]
[1721611933729,2.82505,3539.8,3539.0,2.85082508]
[1721611933927,5.82511,3539.7,3539.0,2.85082508]
[1721611935344,2.82502,3539.8,3539.1,2.82555]
[1721611935858,2.82511,3539.7,3538.9,2.8257]
[1721611936055,2.82517,3539.6,3539.2,0.02517508]
[1721611936221,3.107837,3539.5,3538.6,2.82596]
[1721611936557,3.107837,3539.5,3538.6,2.82597]
[1721611936862,2.8255,3539.2,3538.5,2.82603]
[1721611937223,2.82535,3539.4,3538.6,2.82595]
[1721611938418,2.82535,3539.4,3538.7,2.82588]
[1721611939280,0.282517,3539.5,3538.3,2.82617]
[1721611939555,2.82541,3539.3,3538.4,2.82612]
[1721611939755,2.82525,3539.5,3538.7,2.82589]
[1721611940170,2.82525,3539.5,3538.8,2.82581]
[1721611940315,0.565036,3539.4,3538.8,2.82581]
[1721611940519,2.82541,3539.3,3538.6,2.82593]
[1721611940761,2.8255,3539.2,3538.3,2.8262]
[1721611940965,3.390406,3539.4,3538.7,0.02519681]
[1721611941164,2.82543,3539.3,3538.6,2.82596]
[1721611941458,0.6215796,3539.2,3538.8,0.02519681]
[1721611941659,0.6215796,3539.2,3538.6,2.82596]
[1721611941834,0.6215796,3539.2,3538.9,0.02519681]
[1721611942160,0.6215796,3539.2,3539.0,0.02519681]
[1721611942331,3.4471096,3539.2,3539.0,0.02519681]
[1721611942534,0.62725396,3539.1,3538.5,2.82605]
[1721611942725,2.82507,3539.8,3538.6,0.02519681]
[1721611942932,2.82548,3539.3,3538.6,0.02519681]
[1721611944091,2.82549,3539.2,3538.6,0.02519681]
[1721611944603,2.82559,3539.1,3538.6,0.02519681]
[1721611944895,0.565102,3539.0,3538.6,0.02519681]
[1721611945094,0.565102,3539.0,3538.4,10.12611]
[1721611945301,0.565102,3539.0,3538.7,0.02518844]
[1721611945454,0.565102,3539.0,3538.5,2.82604]
[1721611945649,2.8255,3539.2,3538.8,0.02518844]
[1721611945907,2.8255,3539.2,3538.5,2.82604]
[1721611946060,2.8255,3539.2,3538.9,0.02518844]
[1721611946270,2.82539,3539.4,3538.6,2.82596]
[1721611946595,0.565058,3539.3,3538.8,2.8258]
[1721611946898,2.82526,3539.5,3538.8,2.8258]
[1721611947267,2.82526,3539.5,3538.9,0.02520014]
[1721611947907,2.82544,3539.3,3538.9,0.02520014]
[1721611948054,0.565069,3539.2,3538.9,0.02520014]
[1721611948253,2.82525,3539.5,3538.7,2.82588]
[1721611948459,2.82525,3539.5,3539.0,0.02518008]
[1721611948711,5.8251,3539.7,3538.4,7.3]
[1721611949002,5.8251,3539.7,3538.2,2.487]
[1721611949003,2.8247,3540.2,3539.4,2.82527]
[1721611949317,3.389725,3540.1,3539.4,2.82527]
[1721611949453,2.82468,3540.3,3539.6,2.82516]
[1721611949695,0.87419894,3540.9,3539.5,0.02518008]
[1721611949696,2.82453,3540.5,3539.5,0.02518008]
[1721611949960,2.82453,3540.5,3539.0,2.4212]
[1721611949961,2.82433,3540.7,3539.9,2.82487]
[1721611950167,0.282433,3540.6,3539.7,2.88158582]
[1721611950397,2.82414,3540.9,3540.1,2.82471]
[1721611950615,0.58279929,3541.2,3540.0,5.24602]
[1721611950939,0.58279929,3541.2,3540.2,0.02497118]
[1721611950940,0.97484016,3541.1,3540.2,0.02497118]